fUST/lending_fUST_20240602
["ID","MTS","AMOUNT","RATE_DAILY","PERIOD"]
[328387886,1717317044836,-916.29,0.00021917,2]
[328387887,1717317044846,-500.0,0.00021917,2]
[328387888,1717317044855,-500.0,0.00021917,2]
[328387889,1717317044864,-500.0,0.00021917,2]
[328387890,1717317044873,-503.40080648,0.00021917,2]
[328387891,1717317044882,-500.0,0.00021917,2]
[328387892,1717317044892,-500.0,0.00021917,2]
[328387893,1717317044901,-500.0,0.00021917,2]
[328387894,1717317044911,-1020.35,0.00021917,2]
[328387895,1717317044920,-500.0,0.00021917,2]
[328387896,1717317044929,-500.0,0.00021917,2]
[328387897,1717317044939,-1412.31,0.00021917,2]
[328387898,1717317044948,-1744.81,0.00021917,2]
[328387899,1717317044957,-500.0,0.00021917,2]
[328387900,1717317044966,-500.0,0.00021917,2]
[328387901,1717317044975,-978.59,0.00021917,2]
[328387902,1717317044984,-500.0,0.00021917,2]
[328387903,1717317044994,-500.0,0.00021917,2]
[328387904,1717317045004,-500.0,0.00021917,2]
[328387905,1717317045014,-331.15487422,0.00021917,2]
[328387906,1717317045023,-1238.98,0.00021917,2]
[328387907,1717317045032,-500.0,0.00021917,2]
[328387908,1717317045042,-1536.65,0.00021917,2]
[328387909,1717317045051,-500.0,0.00021917,2]
[328387910,1717317045060,-3592.42,0.00021917,2]
[328387911,1717317045070,-500.0,0.00021917,2]
[328387912,1717317045079,-500.0,0.00021917,2]
[328387913,1717317045088,-698.15,0.00021917,2]
[328387914,1717317045098,-500.0,0.00021917,2]
[328387915,1717317045107,-500.0,0.00021917,2]
[328387916,1717317045116,-500.0,0.00021917,2]
[328387917,1717317045125,-151.0,0.00021917,2]
[328387918,1717317045135,-151.0,0.00021917,2]
[328387919,1717317045144,-989.48,0.00021917,2]
[328387920,1717317045154,-4389.42,0.00021917,2]
[328387921,1717317045164,-151.0,0.00021917,2]
[328387922,1717317045173,-500.0,0.00021917,2]
[328387923,1717317045183,-500.0,0.00021917,2]
[328387924,1717317045192,-500.0,0.00021917,2]
[328387925,1717317045201,-500.0,0.00021917,2]
[328387926,1717317045210,-500.0,0.00021917,2]
[328387927,1717317045219,-5078.17,0.00021917,2]
[328387928,1717317045229,-500.0,0.00021917,2]
[328387929,1717317045239,-500.0,0.00021917,2]
[328387930,1717317045248,-707.49,0.00021917,2]
[328387931,1717317045259,-336.24864644,0.00021917,2]
[328387932,1717317045268,-6579.68,0.00021917,2]
[328387933,1717317045278,-151.0,0.00021917,2]
[328387934,1717317045287,-500.0,0.00021917,2]
[328387935,1717317045296,-500.0,0.00021917,2]
[328387936,1717317045306,-19922.88,0.00021917,2]
[328387937,1717317045315,-151.0,0.00021917,2]
[328387938,1717317045324,-1135.93,0.00021917,2]
[328387939,1717317045334,-151.0,0.00021917,2]
[328387940,1717317045343,-500.0,0.00021917,2]
[328387941,1717317045353,-1655.51,0.00021917,2]
[328387942,1717317045362,-500.0,0.00021917,2]
[328387943,1717317045371,-636.33,0.00021917,2]
[328387944,1717317045380,-187.42629809,0.00021917,2]
[328387945,1717317045389,-500.0,0.00021917,2]
[328387946,1717317045399,-500.0,0.00021917,2]
[328387947,1717317045409,-516.63426432,0.00021917,2]
[328387948,1717317045418,-1162.32,0.00021917,2]
[328387949,1717317045427,-1123.91,0.00021917,2]
[328387950,1717317045436,-500.0,0.00021917,2]
[328387951,1717317045445,-500.0,0.00021917,2]
[328387952,1717317045455,-500.0,0.00021917,2]
[328387953,1717317045464,-500.0,0.00021917,2]
[328387954,1717317045473,-787.27,0.00021917,2]
[328387955,1717317045482,-382.57902097,0.00021917,2]
[328387956,1717317045491,-594.49,0.00021917,2]
[328387957,1717317045501,-590.2,0.00021917,2]
[328387958,1717317045513,-763.38,0.00021917,2]
[328387959,1717317045522,-500.0,0.00021917,2]
[328387960,1717317045531,-946.86,0.00021917,2]
[328387961,1717317045541,-542.27,0.00021917,2]
[328387962,1717317045551,-500.0,0.00021917,2]
[328387963,1717317045561,-532.05321584,0.00021917,2]
[328387964,1717317045570,-6040.94,0.00021917,2]
[328387965,1717317045580,-500.0,0.00021917,2]
[328387966,1717317045589,-14889.61,0.00021917,2]
[328387967,1717317045600,-500.0,0.00021917,2]
[328387968,1717317045610,-500.0,0.00021917,2]
[328387969,1717317045622,-500.0,0.00021917,2]
[328387970,1717317045638,-500.0,0.00021917,2]
[328387972,1717317045649,-500.0,0.00021917,2]
[328387974,1717317045658,-500.0,0.00021917,2]
[328387976,1717317045667,-500.0,0.00021917,2]
[328387977,1717317045678,-500.0,0.00021917,2]
[328387979,1717317045687,-500.0,0.00021917,2]
[328387981,1717317045696,-500.0,0.00021917,2]
[328387983,1717317045706,-500.0,0.00021917,2]
[328387985,1717317045716,-500.0,0.00021917,2]
[328387987,1717317045725,-500.0,0.00021917,2]
[328387989,1717317045734,-613.03523336,0.00021917,2]
[328387991,1717317045743,-408.385951,0.00021917,2]
[328387992,1717317045752,-408.385951,0.00021917,2]
[328387993,1717317045769,-408.385951,0.00021917,2]
[328387994,1717317045778,-500.0,0.00021917,2]
[328387995,1717317045787,-408.385951,0.00021917,2]
[328387996,1717317045796,-408.385951,0.00021917,2]
[328387997,1717317045806,-500.0,0.00021917,2]
[328387998,1717317045816,-408.385951,0.00021917,2]
[328387999,1717317045825,-408.385951,0.00021917,2]
[328388000,1717317045835,-408.385951,0.00021917,2]
[328388001,1717317045844,-500.0,0.00021917,2]
[328388002,1717317045853,-408.385951,0.00021917,2]
[328388003,1717317045862,-408.385951,0.00021917,2]
[328388004,1717317045871,-963.89,0.00021917,2]
[328388005,1717317045881,-500.0,0.00021917,2]
[328388006,1717317045890,-189.002805,0.00021917,2]
[328388007,1717317045900,-189.002805,0.00021917,2]
[328388008,1717317045909,-189.002805,0.00021917,2]
[328388009,1717317045918,-189.002805,0.00021917,2]
[328388010,1717317045928,-189.002805,0.00021917,2]
[328388011,1717317045937,-284.76333001,0.00021917,2]
[328388012,1717317045946,-189.002805,0.00021917,2]
[328388013,1717317045956,-189.002805,0.00021917,2]
[328388014,1717317045965,-189.002805,0.00021917,2]
[328388015,1717317045974,-189.002805,0.00021917,2]
[328388016,1717317045983,-189.002805,0.00021917,2]
[328388017,1717317045993,-500.0,0.00021917,2]
[328388018,1717317046002,-2457.52,0.00021917,2]
[328388019,1717317046013,-500.0,0.00021917,2]
[328388020,1717317046023,-500.0,0.00021917,2]
[328388021,1717317046032,-1326.87,0.00021917,2]
[328388022,1717317046041,-3108.34,0.00021917,2]
[328388023,1717317046051,-350.08096854,0.00021917,2]
[328388024,1717317046060,-539.15856253,0.00021917,2]
[328388025,1717317046069,-500.0,0.00021917,2]
[328388026,1717317046079,-594.78,0.00021917,2]
[328388027,1717317046088,-1491.4,0.00021917,2]
[328388028,1717317046097,-500.0,0.00021917,2]
[328388029,1717317046107,-24378.76,0.00021917,2]
[328388030,1717317046116,-24832.67,0.00021917,2]
[328388031,1717317046125,-1122.91,0.00021917,2]
[328388032,1717317046134,-500.0,0.00021917,2]
[328388033,1717317046143,-500.0,0.00021917,2]
[328388034,1717317046152,-647.55,0.00021917,2]
[328388035,1717317046161,-508.19,0.00021917,2]
[328388036,1717317046172,-1524.85,0.00021917,2]
[328388037,1717317046181,-500.0,0.00021917,2]
[328388038,1717317046190,-1014.83,0.00021917,2]
[328388039,1717317046199,-500.0,0.00021917,2]
[328388040,1717317046208,-488.06386711,0.00021917,2]
[328388046,1717317046300,-6437.6,0.00021917,2]
[328388049,1717317046311,-883.98,0.00021917,2]
[328388050,1717317046320,-384.70472915,0.00021917,2]
[328388051,1717317046329,-500.0,0.00021917,2]
[328388053,1717317046339,-615.71,0.00021917,2]
[328388055,1717317046349,-2553.03,0.00021917,2]
[328388056,1717317046358,-3250.29,0.00021917,2]
[328388058,1717317046368,-500.0,0.00021917,2]
[328388060,1717317046377,-1271.98,0.00021917,2]
[328388061,1717317046388,-500.0,0.00021917,2]
[328388062,1717317046397,-500.0,0.00021917,2]
[328388063,1717317046407,-500.0,0.00021917,2]
[328388064,1717317046416,-500.0,0.00021917,2]
[328388065,1717317046425,-500.0,0.00021917,2]
[328388066,1717317046434,-500.0,0.00021917,2]
[328388067,1717317046444,-500.0,0.00021917,2]
[328388068,1717317046453,-500.0,0.00021917,2]
[328388069,1717317046462,-1303.1,0.00021917,2]
[328388070,1717317046472,-500.0,0.00021917,2]
[328388071,1717317046481,-603.38,0.00021917,2]
[328388072,1717317046491,-1136.5,0.00021917,2]
[328388073,1717317046500,-500.0,0.00021917,2]
[328388074,1717317046511,-500.0,0.00021917,2]
[328388075,1717317046520,-500.0,0.00021917,2]
[328388076,1717317046529,-500.0,0.00021917,2]
[328388077,1717317046539,-500.0,0.00021917,2]
[328388078,1717317046548,-633.35871616,0.00021917,2]
[328388079,1717317046557,-500.0,0.00021917,2]
[328388080,1717317046566,-770.68,0.00021917,2]
[328388081,1717317046575,-761.04,0.00021917,2]
[328388082,1717317046584,-500.0,0.00021917,2]
[328388083,1717317046594,-500.0,0.00021917,2]
[328388084,1717317046603,-500.0,0.00021917,2]
[328388085,1717317046612,-500.0,0.00021917,2]
[328388086,1717317046621,-421.04153356,0.00021917,2]
[328388087,1717317046635,-500.0,0.00021917,2]
[328388088,1717317046645,-1936.05,0.00021917,2]
[328388089,1717317046654,-166.666666,0.00021918,2]
[328388090,1717317046663,-151.0,0.00021918,2]
[328388091,1717317046672,-151.0,0.00021918,2]
[328388092,1717317046682,-257.602767,0.00021918,2]
[328388093,1717317046691,-665.559209,0.00021918,2]
[328388094,1717317046701,-665.559209,0.00021918,2]
[328388095,1717317046711,-665.559209,0.00021918,2]
[328388096,1717317046723,-665.559209,0.00021918,2]
[328388097,1717317046732,-665.559209,0.00021918,2]
[328388098,1717317046743,-665.559209,0.00021918,2]
[328388099,1717317046753,-665.559209,0.00021918,2]
[328388100,1717317046763,-665.559209,0.00021918,2]
[328388101,1717317046773,-665.559209,0.00021918,2]
[328388102,1717317046783,-665.559209,0.00021918,2]
[328388103,1717317046794,-400.65765264,0.00021918,7]
[328388104,1717317046804,-151.0,0.00021927,5]
[328388105,1717317046815,-151.0,0.00021927,5]
[328388106,1717317046824,-418.2732194,0.00021973,2]
[328388107,1717317046834,-53056.93059443,0.00022,2]
[328388108,1717317046844,-155.0,0.00022,2]
[328388109,1717317046854,-285.0,0.00022,2]
[328388110,1717317046863,-155.40589241,0.00022,2]
[328388111,1717317046873,-282.0,0.00022,2]
[328388112,1717317046882,-151.0,0.00022,2]
[328388113,1717317046892,-158.508328,0.00022,2]
[328388114,1717317046901,-151.0,0.00022,2]
[328388115,1717317046911,-151.0,0.00022,2]
[328388116,1717317046920,-154.001584,0.00022,2]
[328388117,1717317046930,-154.001584,0.00022,2]
[328388118,1717317046939,-151.0,0.00022,2]
[328388119,1717317046948,-151.0,0.00022,2]
[328388120,1717317046957,-665.559209,0.00022,2]
[328388121,1717317046967,-665.559209,0.00022,2]
[328388122,1717317046976,-408.385951,0.00022,2]
[328388123,1717317046985,-408.385951,0.00022,2]
[328388124,1717317046995,-189.002805,0.00022,2]
[328388125,1717317047006,-189.002805,0.00022,2]
[328388126,1717317047015,-151.0,0.00022,5]
[328388127,1717317047024,-151.0,0.00022,5]
[328388128,1717317047034,-1197.44256276,0.000221,2]
[328388129,1717317047044,-162.82015181,0.00022189,2]
[328388130,1717317047053,-601.64,0.00022191,2]
[328388131,1717317047063,-514.53260685,0.00022191,2]
[328388132,1717317047072,-534.85,0.00022191,2]
[328388133,1717317047082,-265.85119809,0.00022191,2]
[328388134,1717317047091,-2360.67,0.00022191,2]
[328388135,1717317047100,-500.0,0.00022191,2]
[328388136,1717317047109,-500.0,0.00022191,2]
[328388137,1717317047118,-500.0,0.00022191,2]
[328388138,1717317047127,-555.81,0.00022191,2]
[328388139,1717317047136,-243.03415262,0.00022191,2]
[328388140,1717317047146,-433.95160196,0.00022191,2]
[328388141,1717317047155,-500.0,0.00022191,2]
[328388142,1717317047165,-1207.53,0.00022191,2]
[328388143,1717317047174,-500.0,0.00022191,2]
[328388144,1717317047184,-300.0,0.00022191,2]
[328388145,1717317047193,-1900.22,0.00022191,2]
[328388146,1717317047202,-500.0,0.00022191,2]
[328388147,1717317047211,-500.0,0.00022191,2]
[328388148,1717317047220,-500.0,0.00022191,2]
[328388149,1717317047230,-500.0,0.00022191,2]
[328388150,1717317047239,-500.0,0.00022191,2]
[328388151,1717317047249,-500.0,0.00022191,2]
[328388152,1717317047260,-1202.18,0.00022191,2]
[328388153,1717317047270,-500.0,0.00022191,2]
[328388154,1717317047280,-500.0,0.00022191,2]
[328388155,1717317047289,-500.0,0.00022191,2]
[328388156,1717317047299,-249.39854456,0.00022191,2]
[328388157,1717317047309,-590.75,0.00022191,2]
[328388158,1717317047318,-1537.29,0.00022191,2]
[328388159,1717317047328,-507.62,0.00022191,2]
[328388160,1717317047337,-737.62,0.00022191,2]
[328388161,1717317047346,-500.0,0.00022191,2]
[328388162,1717317047356,-500.0,0.00022191,2]
[328388163,1717317047365,-500.0,0.00022191,2]
[328388164,1717317047374,-500.0,0.00022191,2]
[328388165,1717317047383,-428.88281236,0.00022191,2]
[328388166,1717317047393,-747.14,0.00022191,2]
[328388167,1717317047402,-500.0,0.00022191,2]
[328388168,1717317047411,-548.54937589,0.00022191,2]
[328388169,1717317047421,-366.61579534,0.00022191,2]
[328388170,1717317047430,-500.0,0.00022191,2]
[328388171,1717317047439,-500.0,0.00022191,2]
[328388172,1717317047449,-917.82,0.00022191,2]
[328388173,1717317047459,-500.0,0.00022191,2]
[328388174,1717317047468,-500.0,0.00022191,2]
[328388175,1717317047477,-500.0,0.00022191,2]
[328388176,1717317047486,-500.0,0.00022191,2]
[328388177,1717317047495,-839.17,0.00022191,2]
[328388178,1717317047505,-500.0,0.00022191,2]
[328388179,1717317047515,-500.0,0.00022191,2]
[328388180,1717317047524,-630.14442192,0.00022191,2]
[328388181,1717317047533,-500.0,0.00022191,2]
[328388182,1717317047543,-1027.64,0.00022191,2]
[328388183,1717317047552,-500.0,0.00022191,2]
[328388184,1717317047562,-500.0,0.00022191,2]
[328388185,1717317047571,-1613.24,0.00022191,2]
[328388186,1717317047580,-729.27,0.00022191,2]
[328388187,1717317047589,-504.7,0.00022191,2]
[328388188,1717317047599,-976.72,0.00022191,2]
[328388189,1717317047608,-291.552917,0.00022191,2]
[328388190,1717317047617,-1683.66,0.00022191,2]
[328388191,1717317047629,-500.0,0.00022191,2]
[328388192,1717317047639,-521.83,0.00022191,2]
[328388193,1717317047649,-500.0,0.00022191,2]
[328388194,1717317047658,-518.22,0.00022191,2]
[328388195,1717317047667,-556.73,0.00022191,2]
[328388196,1717317047676,-959.83,0.00022191,2]
[328388197,1717317047686,-618.74,0.00022191,2]
[328388198,1717317047695,-500.0,0.00022191,2]
[328388199,1717317047705,-500.0,0.00022191,2]
[328388200,1717317047714,-530.2,0.00022191,2]
[328388201,1717317047802,-500.0,0.00022191,2]
[328388202,1717317047811,-500.0,0.00022191,2]
[328388203,1717317047822,-643.26,0.00022191,2]
[328388204,1717317047831,-730.78,0.00022191,2]
[328388205,1717317047841,-613.81,0.00022191,2]
[328388206,1717317047851,-500.0,0.00022191,2]
[328388207,1717317047860,-500.0,0.00022191,2]
[328388208,1717317047869,-500.0,0.00022191,2]
[328388209,1717317047879,-910.67,0.00022191,2]
[328388210,1717317047889,-500.0,0.00022191,2]
[328388211,1717317047899,-500.0,0.00022191,2]
[328388212,1717317047908,-500.0,0.00022191,2]
[328388213,1717317047917,-500.0,0.00022191,2]
[328388214,1717317047927,-2722.04,0.00022191,2]
[328388215,1717317047937,-500.0,0.00022191,2]
[328388216,1717317047947,-500.0,0.00022191,2]
[328388217,1717317047957,-910.08,0.00022191,2]
[328388218,1717317047967,-500.0,0.00022191,2]
[328388219,1717317047976,-498.90930028,0.00022191,2]
[328388220,1717317047986,-525.08313577,0.00022191,2]
[328388221,1717317047996,-500.0,0.00022191,2]
[328388222,1717317048005,-545.34,0.00022191,2]
[328388223,1717317048015,-509.79,0.00022191,2]
[328388224,1717317048024,-500.0,0.00022191,2]
[328388225,1717317048034,-500.0,0.00022191,2]
[328388226,1717317048043,-500.0,0.00022191,2]
[328388227,1717317048052,-1011.39,0.00022191,2]
[328388228,1717317048062,-500.0,0.00022191,2]
[328388229,1717317048071,-2455.04,0.00022191,2]
[328388230,1717317048081,-500.0,0.00022191,2]
[328388231,1717317048090,-774.57,0.00022191,2]
[328388232,1717317048100,-500.0,0.00022191,2]
[328388233,1717317048109,-500.0,0.00022191,2]
[328388234,1717317048118,-500.0,0.00022191,2]
[328388235,1717317048128,-487.22463578,0.00022191,2]
[328388236,1717317048137,-500.0,0.00022191,2]
[328388237,1717317048147,-500.0,0.00022191,2]
[328388238,1717317048156,-500.0,0.00022191,2]
[328388239,1717317048166,-1203.83,0.00022191,2]
[328388240,1717317048175,-584.09,0.00022191,2]
[328388241,1717317048184,-500.0,0.00022191,2]
[328388242,1717317048194,-500.0,0.00022191,2]
[328388243,1717317048203,-500.0,0.00022191,2]
[328388244,1717317048212,-500.0,0.00022191,2]
[328388245,1717317048222,-2418.82,0.00022191,2]
[328388246,1717317048231,-1622.41,0.00022191,2]
[328388247,1717317048242,-500.0,0.00022191,2]
[328388248,1717317048251,-500.0,0.00022191,2]
[328388249,1717317048263,-500.0,0.00022191,2]
[328388250,1717317048272,-500.0,0.00022191,2]
[328388251,1717317048281,-975.81,0.00022191,2]
[328388252,1717317048291,-2443.81,0.00022191,2]
[328388253,1717317048300,-500.0,0.00022191,2]
[328388254,1717317048310,-527.53,0.00022191,2]
[328388255,1717317048319,-703.88,0.00022191,2]
[328388256,1717317048328,-500.0,0.00022191,2]
[328388257,1717317048338,-500.0,0.00022191,2]
[328388258,1717317048347,-500.0,0.00022191,2]
[328388259,1717317048356,-500.0,0.00022191,2]
[328388260,1717317048365,-500.0,0.00022191,2]
[328388261,1717317048374,-500.0,0.00022191,2]
[328388262,1717317048383,-500.0,0.00022191,2]
[328388263,1717317048392,-500.0,0.00022191,2]
[328388264,1717317048402,-500.0,0.00022191,2]
[328388265,1717317048411,-500.0,0.00022191,2]
[328388266,1717317048420,-545.96,0.00022191,2]
[328388267,1717317048429,-740.02,0.00022191,2]
[328388268,1717317048438,-870.48,0.00022191,2]
[328388269,1717317048447,-500.0,0.00022191,2]
[328388270,1717317048456,-241.71882706,0.00022191,2]
[328388271,1717317048465,-151.0,0.00022191,2]
[328388272,1717317048474,-151.0,0.00022191,2]
[328388273,1717317048483,-151.0,0.00022191,2]
[328388274,1717317048492,-151.0,0.00022191,2]
[328388275,1717317048501,-151.0,0.00022191,2]
[328388276,1717317048511,-151.0,0.00022191,2]
[328388277,1717317048520,-1902.72,0.00022191,2]
[328388278,1717317048530,-1455.37,0.00022191,2]
[328388279,1717317048539,-151.0,0.00022191,2]
[328388280,1717317048548,-151.0,0.00022191,2]
[328388281,1717317048557,-266.127038,0.00022191,2]
[328388282,1717317048566,-500.0,0.00022191,2]
[328388283,1717317048575,-500.0,0.00022191,2]
[328388284,1717317048584,-590.52,0.00022191,2]
[328388285,1717317048593,-543.56,0.00022191,2]
[328388286,1717317048602,-370.69765697,0.00022191,2]
[328388287,1717317048611,-500.0,0.00022191,2]
[328388288,1717317048620,-574.2438659,0.00022191,2]
[328388289,1717317048632,-500.0,0.00022191,2]
[328388290,1717317048641,-574.29,0.00022191,2]
[328388291,1717317048650,-500.0,0.00022191,2]
[328388292,1717317048659,-500.0,0.00022191,2]
[328388293,1717317048668,-830.3,0.00022191,2]
[328388294,1717317048679,-500.0,0.00022191,2]
[328388295,1717317048687,-698.48,0.00022191,2]
[328388296,1717317048697,-1234.56,0.00022191,2]
[328388297,1717317048707,-750.5,0.00022191,2]
[328388298,1717317048716,-500.0,0.00022191,2]
[328388299,1717317048726,-604.79,0.00022191,2]
[328388300,1717317048735,-500.0,0.00022191,2]
[328388301,1717317048744,-400.69784407,0.00022191,2]
[328388302,1717317048753,-500.0,0.00022191,2]
[328388303,1717317048763,-500.0,0.00022191,2]
[328388304,1717317048772,-604.29,0.00022191,2]
[328388305,1717317048781,-533.04,0.00022191,2]
[328388306,1717317048790,-500.0,0.00022191,2]
[328388307,1717317048800,-500.0,0.00022191,2]
[328388308,1717317048810,-154.001584,0.00022191,2]
[328388309,1717317048819,-154.001584,0.00022191,2]
[328388310,1717317048829,-154.001584,0.00022191,2]
[328388311,1717317048838,-154.001584,0.00022191,2]
[328388312,1717317048848,-154.001584,0.00022191,2]
[328388313,1717317048857,-154.001584,0.00022191,2]
[328388314,1717317048866,-500.0,0.00022191,2]
[328388315,1717317048876,-154.001584,0.00022191,2]
[328388316,1717317048885,-154.001584,0.00022191,2]
[328388317,1717317048894,-154.001584,0.00022191,2]
[328388318,1717317048903,-500.0,0.00022191,2]
[328388319,1717317048913,-154.001584,0.00022191,2]
[328388320,1717317048922,-154.001584,0.00022191,2]
[328388321,1717317048932,-154.001594,0.00022191,2]
[328388322,1717317048941,-500.0,0.00022191,2]
[328388323,1717317048951,-1131.43,0.00022191,2]
[328388324,1717317048960,-500.0,0.00022191,2]
[328388325,1717317048969,-531.42,0.00022191,2]
[328388326,1717317048979,-500.0,0.00022191,2]
[328388327,1717317048988,-500.0,0.00022191,2]
[328388328,1717317048997,-151.0,0.00022191,2]
[328388329,1717317049007,-500.0,0.00022191,2]
[328388330,1717317049016,-151.0,0.00022191,2]
[328388331,1717317049026,-216.119242,0.00022191,2]
[328388332,1717317049036,-500.0,0.00022191,2]
[328388333,1717317049045,-916.29,0.00022191,2]
[328388334,1717317049054,-500.0,0.00022191,2]
[328388335,1717317049064,-429.59912152,0.00022191,2]
[328388336,1717317049072,-500.0,0.00022191,2]
[328388337,1717317049082,-500.0,0.00022191,2]
[328388338,1717317049170,-500.0,0.00022191,2]
[328388339,1717317049179,-500.0,0.00022191,2]
[328388340,1717317049189,-1020.35,0.00022191,2]
[328388341,1717317049198,-500.0,0.00022191,2]
[328388342,1717317049207,-457.33453402,0.00022191,2]
[328388343,1717317049217,-1412.31,0.00022191,2]
[328388344,1717317049228,-1744.81,0.00022191,2]
[328388345,1717317049237,-500.0,0.00022191,2]
[328388346,1717317049247,-500.0,0.00022191,2]
[328388347,1717317049257,-978.59,0.00022191,2]
[328388348,1717317049267,-500.0,0.00022191,2]
[328388349,1717317049276,-500.0,0.00022191,2]
[328388350,1717317049286,-500.0,0.00022191,2]
[328388351,1717317049295,-1238.98,0.00022191,2]
[328388352,1717317049304,-300.9379276,0.00022191,2]
[328388353,1717317049313,-1536.65,0.00022191,2]
[328388354,1717317049323,-500.0,0.00022191,2]
[328388355,1717317049332,-3592.42,0.00022191,2]
[328388356,1717317049341,-500.0,0.00022191,2]
[328388357,1717317049352,-500.0,0.00022191,2]
[328388358,1717317049361,-698.15,0.00022191,2]
[328388359,1717317049371,-500.0,0.00022191,2]
[328388360,1717317049380,-500.0,0.00022191,2]
[328388361,1717317049390,-989.48,0.00022191,2]
[328388362,1717317049400,-4389.42,0.00022191,2]
[328388363,1717317049409,-500.0,0.00022191,2]
[328388364,1717317049420,-151.0,0.00022191,2]
[328388365,1717317049431,-500.0,0.00022191,2]
[328388366,1717317049441,-500.0,0.00022191,2]
[328388367,1717317049452,-500.0,0.00022191,2]
[328388368,1717317049463,-500.0,0.00022191,2]
[328388369,1717317049472,-5078.17,0.00022191,2]
[328388370,1717317049482,-500.0,0.00022191,2]
[328388371,1717317049492,-519.95415505,0.00022191,2]
[328388372,1717317049502,-707.49,0.00022191,2]
[328388373,1717317049513,-6579.68,0.00022191,2]
[328388374,1717317049523,-500.0,0.00022191,2]
[328388375,1717317049532,-500.0,0.00022191,2]
[328388376,1717317049541,-19922.88,0.00022191,2]
[328388377,1717317049551,-1135.93,0.00022191,2]
[328388378,1717317049560,-500.0,0.00022191,2]
[328388379,1717317049570,-1655.51,0.00022191,2]
[328388380,1717317049579,-500.0,0.00022191,2]
[328388381,1717317049588,-636.33,0.00022191,2]
[328388382,1717317049598,-500.0,0.00022191,2]
[328388383,1717317049607,-500.0,0.00022191,2]
[328388384,1717317049618,-1162.32,0.00022191,2]
[328388385,1717317049631,-1123.91,0.00022191,2]
[328388386,1717317049640,-441.59361144,0.00022191,2]
[328388387,1717317049650,-500.0,0.00022191,2]
[328388388,1717317049659,-500.0,0.00022191,2]
[328388389,1717317049668,-500.0,0.00022191,2]
[328388390,1717317049678,-787.27,0.00022191,2]
[328388391,1717317049687,-594.49,0.00022191,2]
[328388392,1717317049698,-590.2,0.00022191,2]
[328388393,1717317049707,-763.38,0.00022191,2]
[328388394,1717317049717,-500.0,0.00022191,2]
[328388395,1717317049727,-542.27,0.00022191,2]
[328388396,1717317049737,-946.86,0.00022191,2]
[328388397,1717317049748,-500.0,0.00022191,2]
[328388398,1717317049759,-6040.94,0.00022191,2]
[328388399,1717317049768,-500.0,0.00022191,2]
[328388400,1717317049777,-665.559209,0.00022191,2]
[328388401,1717317049787,-14889.61,0.00022191,2]
[328388402,1717317049797,-665.559209,0.00022191,2]
[328388403,1717317049807,-665.559209,0.00022191,2]
[328388404,1717317049816,-665.559209,0.00022191,2]
[328388405,1717317049828,-665.559209,0.00022191,2]
[328388406,1717317049838,-665.559209,0.00022191,2]